fUST/lending_fUST_20240808
["ID","MTS","AMOUNT","RATE_DAILY","PERIOD"]
[334424258,1723084246310,-500.0,0.00027671,7]
[334424259,1723084246320,-500.0,0.00027671,7]
[334424260,1723084246330,-500.0,0.00027671,7]
[334424261,1723084246341,-500.0,0.00027671,7]
[334424262,1723084246352,-500.0,0.00027671,7]
[334424263,1723084246361,-500.0,0.00027671,7]
[334424264,1723084246370,-500.0,0.00027671,7]
[334424265,1723084246380,-506.54206553,0.00027671,7]
[334424266,1723084246390,-1864.11,0.00027671,7]
[334424267,1723084246401,-500.0,0.00027671,7]
[334424268,1723084246413,-378.1654324,0.00027671,7]
[334424269,1723084246423,-1220.41,0.00027671,7]
[334424270,1723084246432,-855.08,0.00027671,7]
[334424271,1723084246441,-443.20168161,0.00027671,7]
[334424272,1723084246452,-500.0,0.00027671,7]
[334424273,1723084246461,-500.0,0.00027671,7]
[334424274,1723084246470,-500.0,0.00027671,7]
[334424275,1723084246480,-461.16518818,0.00027671,7]
[334424276,1723084246489,-501.54936867,0.00027671,7]
[334424277,1723084246499,-500.0,0.00027671,7]
[334424278,1723084246508,-1785.49,0.00027671,7]
[334424279,1723084246518,-500.0,0.00027671,7]
[334424280,1723084246528,-505.25959199,0.00027671,7]
[334424281,1723084246538,-501.39781597,0.00027671,7]
[334424282,1723084246549,-751.91,0.00027671,7]
[334424283,1723084246560,-500.0,0.00027671,7]
[334424284,1723084246569,-617.07,0.00027671,7]
[334424285,1723084246578,-1574.83,0.00027671,7]
[334424286,1723084246588,-500.0,0.00027671,7]
[334424287,1723084246597,-1153.44,0.00027671,7]
[334424288,1723084246606,-507.30544404,0.00027671,7]
[334424289,1723084246616,-500.0,0.00027671,2]
[334424290,1723084246625,-500.0,0.00027671,7]
[334424291,1723084246634,-671.53,0.00027671,7]
[334424292,1723084246644,-1446.16,0.00027671,7]
[334424293,1723084246653,-500.0,0.00027671,7]
[334424294,1723084246664,-500.0,0.00027671,7]
[334424295,1723084246673,-504.01331485,0.00027671,7]
[334424296,1723084246682,-700.87,0.00027671,7]
[334424297,1723084246692,-500.0,0.00027671,7]
[334424298,1723084246701,-738.47,0.00027671,7]
[334424299,1723084246710,-751.61,0.00027671,7]
[334424300,1723084246719,-500.0,0.00027671,7]
[334424301,1723084246729,-508.09,0.00027671,7]
[334424302,1723084246738,-540.16,0.00027671,7]
[334424303,1723084246747,-500.0,0.00027671,7]
[334424304,1723084246756,-846.41,0.00027671,7]
[334424305,1723084246766,-500.0,0.00027671,7]
[334424306,1723084246775,-500.0,0.00027671,7]
[334424307,1723084246785,-500.0,0.00027671,7]
[334424308,1723084246794,-1580.04,0.00027671,7]
[334424309,1723084246803,-500.0,0.00027671,7]
[334424310,1723084246813,-908.56,0.00027671,7]
[334424311,1723084246824,-772.42,0.00027671,7]
[334424312,1723084246834,-1015.49,0.00027671,7]
[334424313,1723084246843,-503.75988016,0.00027671,7]
[334424314,1723084246855,-500.0,0.00027671,7]
[334424315,1723084246864,-1401.14,0.00027671,7]
[334424316,1723084246874,-563.94119042,0.00027671,7]
[334424317,1723084246883,-500.0,0.00027671,7]
[334424318,1723084246893,-500.0,0.00027671,7]
[334424319,1723084246903,-647.12,0.00027671,7]
[334424320,1723084246917,-500.0,0.00027671,7]
[334424321,1723084246927,-500.0,0.00027671,7]
[334424322,1723084246937,-898.68,0.00027671,7]
[334424323,1723084246946,-554.25,0.00027671,7]
[334424324,1723084246955,-500.0,0.00027671,7]
[334424325,1723084246965,-500.0,0.00027671,7]
[334424326,1723084246974,-524.75,0.00027671,7]
[334424327,1723084246983,-1580.27,0.00027671,7]
[334424328,1723084246992,-500.0,0.00027671,7]
[334424329,1723084247002,-500.0,0.00027671,7]
[334424330,1723084247012,-1123.59,0.00027671,7]
[334424331,1723084247021,-500.0,0.00027671,7]
[334424332,1723084247031,-1498.18,0.00027671,7]
[334424333,1723084247040,-500.0,0.00027671,7]
[334424334,1723084247050,-500.0,0.00027671,7]
[334424335,1723084247062,-500.0,0.00027671,7]
[334424336,1723084247072,-548.75,0.00027671,7]
[334424337,1723084247082,-300.77040873,0.00027671,7]
[334424338,1723084247091,-501.97283445,0.00027671,7]
[334424339,1723084247102,-1533.5,0.00027671,7]
[334424340,1723084247111,-500.0,0.00027671,7]
[334424341,1723084247122,-1135.05,0.00027671,7]
[334424342,1723084247132,-500.0,0.00027671,7]
[334424343,1723084247144,-500.0,0.00027671,7]
[334424344,1723084247154,-1509.19,0.00027671,7]
[334424345,1723084247169,-500.0,0.00027671,7]
[334424346,1723084247180,-500.0,0.00027671,7]
[334424347,1723084247190,-1153.59,0.00027671,7]
[334424348,1723084247199,-500.0,0.00027671,7]
[334424349,1723084247209,-500.0,0.00027671,7]
[334424350,1723084247219,-580.54,0.00027671,7]
[334424351,1723084247228,-500.0,0.00027671,7]
[334424352,1723084247238,-668.32,0.00027671,7]
[334424353,1723084247248,-500.0,0.00027671,7]
[334424354,1723084247257,-500.0,0.00027671,7]
[334424355,1723084247267,-500.0,0.00027671,7]
[334424356,1723084247277,-477.01324356,0.00027671,7]
[334424357,1723084247286,-500.0,0.00027671,7]
[334424358,1723084247296,-513.73142351,0.00027671,7]
[334424359,1723084247305,-255.43036665,0.00027671,7]
[334424360,1723084247315,-550.02,0.00027671,7]
[334424361,1723084247325,-500.0,0.00027671,7]
[334424362,1723084247335,-892.15,0.00027671,7]
[334424363,1723084247344,-543.21899016,0.00027671,7]
[334424364,1723084247354,-500.0,0.00027671,7]
[334424365,1723084247364,-522.51,0.00027671,7]
[334424366,1723084247374,-500.0,0.00027671,7]
[334424368,1723084247383,-900.43,0.00027671,7]
[334424370,1723084247393,-501.62698562,0.00027671,7]
[334424371,1723084247402,-500.0,0.00027671,7]
[334424372,1723084247417,-519.7,0.00027671,7]
[334424373,1723084247427,-500.0,0.00027671,7]
[334424374,1723084247437,-500.0,0.00027671,7]
[334424375,1723084247446,-1051.89,0.00027671,7]
[334424376,1723084247456,-3093.95,0.00027671,7]
[334424377,1723084247466,-585.68,0.00027671,7]
[334424378,1723084247475,-197.397526,0.00027671,7]
[334424379,1723084247485,-517.88,0.00027671,7]
[334424380,1723084247495,-500.0,0.00027671,7]
[334424381,1723084247505,-500.0,0.00027671,7]
[334424382,1723084247514,-1024.77,0.00027671,7]
[334424383,1723084247524,-500.0,0.00027671,7]
[334424384,1723084247536,-1211.39,0.00027671,7]
[334424387,1723084247547,-500.0,0.00027671,7]
[334424389,1723084247556,-500.0,0.00027671,7]
[334424392,1723084247565,-1185.41,0.00027671,7]
[334424393,1723084247574,-151.0,0.00027671,7]
[334424395,1723084247584,-300.877491,0.00027671,7]
[334424396,1723084247593,-2191.08,0.00027671,7]
[334424397,1723084247602,-500.0,0.00027671,7]
[334424398,1723084247611,-605.07,0.00027671,7]
[334424399,1723084247621,-504.16,0.00027671,7]
[334424400,1723084247631,-2273.93,0.00027671,7]
[334424401,1723084247640,-500.0,0.00027671,7]
[334424402,1723084247650,-1431.05,0.00027671,7]
[334424403,1723084247664,-500.0,0.00027671,7]
[334424404,1723084247673,-729.15,0.00027671,7]
[334424405,1723084247682,-500.0,0.00027671,7]
[334424406,1723084247692,-500.0,0.00027671,7]
[334424407,1723084247701,-500.0,0.00027671,7]
[334424409,1723084247711,-151.0,0.00027671,7]
[334424411,1723084247721,-151.0,0.00027671,7]
[334424412,1723084247730,-151.0,0.00027671,7]
[334424413,1723084247740,-500.0,0.00027671,7]
[334424414,1723084247750,-1897.5,0.00027671,7]
[334424415,1723084247759,-1900.13,0.00027671,7]
[334424416,1723084247769,-500.0,0.00027671,7]
[334424417,1723084247778,-2824.75,0.00027671,7]
[334424418,1723084247848,-2146.3,0.00027671,7]
[334424419,1723084247858,-500.0,0.00027671,7]
[334424420,1723084247868,-500.0,0.00027671,7]
[334424422,1723084247877,-500.0,0.00027671,7]
[334424424,1723084247886,-792.19,0.00027671,7]
[334424425,1723084247896,-3043.58,0.00027671,7]
[334424426,1723084247909,-500.0,0.00027671,7]
[334424427,1723084247918,-500.0,0.00027671,7]
[334424428,1723084247928,-500.0,0.00027671,7]
[334424429,1723084247937,-500.0,0.00027671,7]
[334424430,1723084247947,-4163.86,0.00027671,7]
[334424431,1723084247956,-569.57,0.00027671,7]
[334424432,1723084247965,-500.0,0.00027671,7]
[334424433,1723084247975,-2766.49,0.00027671,7]
[334424434,1723084247984,-500.0,0.00027671,7]
[334424435,1723084247993,-1022.39,0.00027671,7]
[334424436,1723084248003,-500.0,0.00027671,7]
[334424437,1723084248012,-740.65,0.00027671,7]
[334424438,1723084248021,-500.0,0.00027671,7]
[334424439,1723084248030,-500.0,0.00027671,7]
[334424440,1723084248039,-500.0,0.00027671,7]
[334424441,1723084248049,-500.0,0.00027671,7]
[334424442,1723084248060,-503.24343331,0.00027671,7]
[334424443,1723084248070,-500.0,0.00027671,7]
[334424444,1723084248080,-500.0,0.00027671,7]
[334424446,1723084248089,-1200.93,0.00027671,7]
[334424447,1723084248099,-14587.34,0.00027671,7]
[334424448,1723084248108,-1278.71,0.00027671,7]
[334424449,1723084248117,-500.0,0.00027671,7]
[334424450,1723084248127,-500.0,0.00027671,7]
[334424451,1723084248137,-4352.94,0.00027671,7]
[334424452,1723084248147,-500.0,0.00027671,7]
[334424453,1723084248158,-500.0,0.00027671,7]
[334424454,1723084248167,-500.0,0.00027671,7]
[334424455,1723084248177,-500.0,0.00027671,7]
[334424456,1723084248187,-500.0,0.00027671,7]
[334424457,1723084248196,-3934.14,0.00027671,7]
[334424458,1723084248206,-701.35,0.00027671,7]
[334424459,1723084248219,-504.395212,0.00027671,7]
[334424460,1723084248228,-9435.62,0.00027671,7]
[334424461,1723084248238,-779.74,0.00027671,7]
[334424462,1723084248247,-880.77,0.00027671,7]
[334424463,1723084248257,-2575.11,0.00027671,7]
[334424464,1723084248267,-500.0,0.00027671,7]
[334424465,1723084248276,-1338.42,0.00027671,7]
[334424466,1723084248285,-500.0,0.00027671,7]
[334424467,1723084248295,-648.735977,0.00027671,7]
[334424468,1723084248304,-648.735977,0.00027671,7]
[334424469,1723084248313,-648.735977,0.00027671,7]
[334424470,1723084248323,-2649.22,0.00027671,7]
[334424471,1723084248332,-648.735977,0.00027671,7]
[334424472,1723084248342,-648.735977,0.00027671,7]
[334424473,1723084248351,-648.735977,0.00027671,7]
[334424474,1723084248360,-5754.8,0.00027671,7]
[334424475,1723084248369,-2024.84,0.00027671,7]
[334424476,1723084248379,-500.0,0.00027671,7]
[334424477,1723084248388,-1679.57,0.00027671,7]
[334424478,1723084248397,-500.0,0.00027671,7]
[334424479,1723084248409,-504.67810894,0.00027671,7]
[334424480,1723084248418,-2499.76,0.00027671,7]
[334424481,1723084248427,-500.0,0.00027671,7]
[334424482,1723084248436,-824.24,0.00027671,7]
[334424483,1723084248446,-719.17,0.00027671,7]
[334424484,1723084248455,-819.38,0.00027671,7]
[334424485,1723084248464,-151.0,0.00027671,7]
[334424486,1723084248474,-151.0,0.00027671,7]
[334424487,1723084248484,-151.0,0.00027671,7]
[334424488,1723084248494,-9166.68,0.00027671,7]
[334424489,1723084248503,-151.0,0.00027671,7]
[334424490,1723084248512,-291.969863,0.00027671,7]
[334424491,1723084248521,-584.5,0.00027671,7]
[334424492,1723084248530,-1232.17,0.00027671,7]
[334424493,1723084248539,-500.0,0.00027671,7]
[334424494,1723084248549,-500.0,0.00027671,7]
[334424495,1723084248558,-500.0,0.00027671,7]
[334424496,1723084248567,-500.0,0.00027671,7]
[334424497,1723084248576,-1285.67,0.00027671,7]
[334424498,1723084248586,-5298.18,0.00027671,7]
[334424499,1723084248595,-1150.1,0.00027671,7]
[334424500,1723084248604,-501.40580734,0.00027671,7]
[334424501,1723084248614,-2044.22,0.00027671,7]
[334424502,1723084248623,-1193.79,0.00027671,7]
[334424503,1723084248633,-500.0,0.00027671,7]
[334424504,1723084248642,-968.06,0.00027671,7]
[334424505,1723084248651,-1037.63,0.00027671,7]
[334424506,1723084248665,-1022.94,0.00027671,7]
[334424507,1723084248674,-1754.37,0.00027671,7]
[334424508,1723084248683,-219.47735456,0.00027671,7]
[334424509,1723084248693,-1419.36,0.00027671,7]
[334424510,1723084248702,-500.0,0.00027671,7]
[334424511,1723084248711,-1311.05,0.00027671,7]
[334424512,1723084248721,-500.0,0.00027671,7]
[334424513,1723084248730,-500.0,0.00027671,7]
[334424514,1723084248740,-1498.75,0.00027671,7]
[334424515,1723084248749,-3372.54,0.00027671,7]
[334424516,1723084248759,-500.0,0.00027671,7]
[334424517,1723084248769,-500.0,0.00027671,7]
[334424518,1723084248778,-502.94,0.00027671,7]
[334424519,1723084248787,-5698.5,0.00027671,7]
[334424520,1723084248797,-546.55,0.00027671,7]
[334424521,1723084248806,-500.0,0.00027671,7]
[334424522,1723084248815,-500.0,0.00027671,7]
[334424523,1723084248825,-378.30432144,0.00027671,7]
[334424524,1723084248835,-1306.43,0.00027671,7]
[334424525,1723084248844,-348.45745731,0.00027671,7]
[334424526,1723084248853,-3142.02,0.00027671,7]
[334424527,1723084248863,-878.07,0.00027671,7]
[334424528,1723084248872,-606.64,0.00027671,7]
[334424529,1723084248881,-2422.38,0.00027671,7]
[334424530,1723084248890,-513.11740964,0.00027671,7]
[334424531,1723084248900,-500.0,0.00027671,7]
[334424532,1723084248914,-589.4,0.00027671,7]
[334424533,1723084248929,-824.5,0.00027671,7]
[334424534,1723084248938,-3652.07,0.00027671,7]
[334424535,1723084248947,-500.0,0.00027671,7]
[334424536,1723084248956,-500.0,0.00027671,7]
[334424537,1723084248964,-500.0,0.00027671,7]
[334424538,1723084248973,-502.07903161,0.00027671,7]
[334424539,1723084248982,-2000.0,0.00027685,2]
[334424540,1723084248991,-173.228744,0.00027727,2]
[334424541,1723084249000,-500.0,0.00027752,7]
[334424542,1723084249009,-1066.86,0.00027752,7]
[334424543,1723084249018,-500.0,0.00027752,7]
[334424544,1723084249028,-220.851994,0.00027753,7]
[334424545,1723084249037,-220.851994,0.00027753,7]
[334424546,1723084249047,-1066.86,0.00027753,7]
[334424547,1723084249056,-500.0,0.00027762,7]
[334424548,1723084249067,-1066.86,0.00027762,7]
[334424549,1723084249076,-1066.86,0.00027762,7]
[334424550,1723084249086,-1066.86,0.00027762,7]
[334424551,1723084249095,-1066.86,0.00027762,7]
[334424552,1723084249105,-500.0,0.00027762,7]
[334424553,1723084249114,-500.0,0.00027762,7]
[334424554,1723084249124,-500.0,0.00027762,7]
[334424555,1723084249133,-500.0,0.00027763,7]
[334424556,1723084249146,-506.12382972,0.00027763,7]
[334424557,1723084249158,-502.23178626,0.00027763,7]
[334424558,1723084249167,-504.44708092,0.00027763,7]
[334424559,1723084249176,-502.61623539,0.00027763,7]
[334424560,1723084249186,-500.0,0.00027763,7]
[334424561,1723084249194,-763.68,0.00027763,7]
[334424562,1723084249204,-500.0,0.00027763,7]
[334424563,1723084249214,-500.0,0.00027763,7]
[334424564,1723084249223,-503.02876205,0.00027763,7]
[334424565,1723084249233,-571.11959783,0.00027763,7]
[334424566,1723084249243,-500.0,0.00027763,7]
[334424567,1723084249252,-500.0,0.00027763,7]
[334424568,1723084249261,-500.0,0.00027763,7]
[334424569,1723084249270,-602.03,0.00027763,7]
[334424570,1723084249280,-504.5145759,0.00027763,7]
[334424571,1723084249290,-502.39251373,0.00027763,7]
[334424572,1723084249300,-350.66371931,0.00027763,7]
[334424573,1723084249309,-500.0,0.00027763,7]
[334424574,1723084249319,-500.0,0.00027763,7]
[334424575,1723084249328,-500.0,0.00027763,7]
[334424576,1723084249338,-662.21,0.00027763,7]
[334424577,1723084249348,-475.08023048,0.00027763,7]
[334424578,1723084249358,-502.03406353,0.00027763,7]
[334424579,1723084249367,-521.15754933,0.00027763,7]
[334424580,1723084249376,-500.0,0.00027763,7]
[334424581,1723084249385,-1126.23,0.00027763,7]
[334424582,1723084249395,-589.79,0.00027763,7]
[334424583,1723084249405,-1971.89,0.00027763,7]
[334424584,1723084249422,-500.0,0.00027763,7]
[334424585,1723084249432,-500.0,0.00027763,7]
[334424586,1723084249441,-504.08962127,0.00027763,7]
[334424587,1723084249450,-575.08639083,0.00027763,7]
[334424588,1723084249460,-501.73360447,0.00027763,7]
[334424589,1723084249469,-500.0,0.00027763,7]
[334424590,1723084249479,-500.0,0.00027763,7]
[334424591,1723084249489,-500.0,0.00027763,7]
[334424592,1723084249499,-500.0,0.00027763,7]
[334424593,1723084249509,-500.0,0.00027763,7]
[334424594,1723084249519,-595.87,0.00027763,7]
[334424595,1723084249528,-500.0,0.00027763,7]
[334424596,1723084249538,-501.67769796,0.00027763,7]
[334424597,1723084249548,-500.0,0.00027763,7]
[334424598,1723084249558,-500.0,0.00027763,7]
[334424599,1723084249568,-500.0,0.00027763,7]
[334424600,1723084249578,-502.66841398,0.00027763,7]
[334424601,1723084249588,-603.48,0.00027763,7]
[334424602,1723084249598,-500.0,0.00027763,7]
[334424603,1723084249608,-502.48473568,0.00027763,7]
[334424604,1723084249618,-500.0,0.00027763,7]
[334424605,1723084249627,-500.0,0.00027763,7]
[334424606,1723084249636,-500.0,0.00027763,7]
[334424607,1723084249646,-503.03345667,0.00027763,7]
[334424608,1723084249655,-220.851994,0.00027763,7]
[334424609,1723084249666,-523.67,0.00027763,7]
[334424610,1723084249676,-500.0,0.00027763,7]
[334424611,1723084249685,-220.851994,0.00027763,7]
[334424612,1723084249695,-500.0,0.00027763,7]
[334424613,1723084249705,-503.8519229,0.00027763,7]
[334424614,1723084249714,-500.9180852,0.00027763,7]
[334424615,1723084249723,-517.03596231,0.00027763,7]
[334424616,1723084249733,-500.65393547,0.00027763,7]
[334424617,1723084249742,-510.11473304,0.00027763,7]
[334424618,1723084249751,-503.34305989,0.00027763,7]
[334424619,1723084249760,-501.34687126,0.00027763,7]
[334424620,1723084249769,-502.46454025,0.00027763,7]
[334424621,1723084249778,-505.52510836,0.00027763,7]
[334424622,1723084249788,-519.87,0.00027763,7]
[334424623,1723084249797,-500.0,0.00027763,7]
[334424624,1723084249806,-500.0,0.00027763,7]
[334424625,1723084249816,-500.0,0.00027763,7]
[334424626,1723084249825,-897.23,0.00027763,7]
[334424627,1723084249834,-500.0,0.00027763,7]
[334424628,1723084249843,-500.0,0.00027763,7]
[334424629,1723084249852,-501.07263207,0.00027763,7]
[334424630,1723084249861,-682.35,0.00027763,7]
[334424631,1723084249870,-506.65417424,0.00027763,7]
[334424632,1723084249879,-502.60982156,0.00027763,7]
[334424633,1723084249889,-500.0,0.00027763,7]
[334424634,1723084249898,-151.0,0.00027763,7]
[334424635,1723084249909,-648.735977,0.00027763,7]
[334424636,1723084249918,-648.735977,0.00027763,7]
[334424637,1723084249927,-151.0,0.00027763,7]
[334424638,1723084249936,-682.35,0.00027764,7]
[334424639,1723084249946,-1066.86,0.00027764,7]
[334424640,1723084249955,-1066.86,0.00027774,7]
[334424641,1723084249964,-682.35,0.00027784,7]
[334424642,1723084249974,-682.35,0.00027785,7]
[334424643,1723084249983,-1066.86,0.00027785,7]
[334424644,1723084249992,-1066.86,0.00027786,7]
[334424645,1723084250001,-682.35,0.00027787,7]
[334424646,1723084250010,-682.35,0.00027796,7]
[334424647,1723084250019,-682.35,0.00027797,7]
[334424648,1723084250028,-1066.86,0.00027797,7]
[334424649,1723084250037,-1066.86,0.00027797,7]
[334424650,1723084250046,-583.51664819,0.00027838,7]
[334424651,1723084250055,-500.0,0.00027848,7]
[334424652,1723084250067,-500.0,0.00027848,7]
[334424653,1723084250076,-220.851994,0.00027849,7]
[334424654,1723084250086,-220.851994,0.00027849,7]
[334424655,1723084250095,-242.5327,0.00027856,2]
[334424656,1723084250105,-500.0,0.00027862,7]
[334424657,1723084250114,-500.0,0.00027862,7]
[334424658,1723084250125,-500.0,0.00027862,7]
[334424659,1723084250136,-682.35,0.00027885,7]
[334424660,1723084250146,-500.0,0.00027887,7]
[334424661,1723084250155,-1066.86,0.00027887,7]
[334424662,1723084250168,-220.851994,0.00027897,7]
[334424663,1723084250178,-220.851994,0.00027897,7]
[334424664,1723084250188,-682.35,0.00027897,7]
[334424665,1723084250197,-648.735977,0.00027897,7]
[334424666,1723084250207,-648.735977,0.00027897,7]
[334424667,1723084250218,-151.0,0.00027897,7]
[334424668,1723084250228,-150.01,0.00027898,2]
[334424669,1723084250237,-1285.3831244,0.00027898,2]
[334424670,1723084250247,-3000.0,0.000279,2]
[334424671,1723084250257,-174.583311,0.000279,2]
[334424672,1723084250267,-151.0,0.000279,7]
[334424673,1723084250277,-3184.954027,0.0002791,2]
[334424674,1723084250287,-300.0,0.00027945,19]
[334424675,1723084250297,-500.0,0.00027945,7]
[334424676,1723084250307,-500.0,0.00027945,7]
[334424677,1723084250317,-500.0,0.00027945,7]
[334424678,1723084250327,-500.0,0.00027945,7]
[334424679,1723084250337,-500.0,0.00027945,7]
[334424680,1723084250346,-500.0,0.00027945,7]
[334424681,1723084250356,-500.0,0.00027945,7]
[334424682,1723084250365,-500.0,0.00027945,7]
[334424683,1723084250375,-500.0,0.00027945,7]
[334424684,1723084250386,-500.0,0.00027945,7]
[334424685,1723084250395,-455.31374166,0.00027945,7]
[334424686,1723084250405,-200.0,0.00027945,7]
[334424687,1723084250420,-500.0,0.00027945,7]
[334424688,1723084250430,-500.0,0.00027945,7]
[334424689,1723084250439,-500.0,0.00027945,7]
[334424690,1723084250450,-500.0,0.00027945,7]
[334424691,1723084250460,-974.69,0.00027945,7]
[334424692,1723084250470,-1048.74,0.00027945,7]
[334424693,1723084250480,-500.0,0.00027945,7]
[334424694,1723084250490,-577.96,0.00027945,7]
[334424695,1723084250500,-737.07,0.00027945,7]
[334424696,1723084250510,-500.0,0.00027945,7]
[334424697,1723084250521,-500.0,0.00027945,7]
[334424698,1723084250532,-500.0,0.00027945,7]
[334424699,1723084250541,-500.0,0.00027945,7]
[334424700,1723084250551,-565.19,0.00027945,7]
[334424701,1723084250561,-532.5,0.00027945,7]
[334424702,1723084250571,-500.0,0.00027945,7]
[334424703,1723084250581,-1380.16,0.00027945,7]
[334424704,1723084250591,-500.0,0.00027945,7]
[334424705,1723084250601,-500.0,0.00027945,7]
[334424706,1723084250611,-500.0,0.00027945,7]
[334424707,1723084250621,-500.0,0.00027945,7]
[334424708,1723084250631,-500.0,0.00027945,7]
[334424709,1723084250640,-500.0,0.00027945,7]
[334424710,1723084250650,-500.0,0.00027945,7]
[334424711,1723084250663,-425.74491404,0.00027945,7]
[334424712,1723084250673,-512.46,0.00027945,7]
[334424713,1723084250682,-500.0,0.00027945,7]
[334424714,1723084250692,-500.0,0.00027945,7]
[334424715,1723084250703,-1012.4,0.00027945,7]
[334424716,1723084250713,-500.0,0.00027945,7]
[334424717,1723084250723,-500.0,0.00027945,7]
[334424718,1723084250732,-500.0,0.00027945,7]
[334424719,1723084250742,-1062.96,0.00027945,7]
[334424720,1723084250752,-500.0,0.00027945,7]
[334424721,1723084250762,-500.0,0.00027945,7]
[334424722,1723084250772,-500.0,0.00027945,7]
[334424723,1723084250781,-1131.85,0.00027945,7]
[334424724,1723084250790,-500.0,0.00027945,7]
[334424725,1723084250800,-500.0,0.00027945,7]
[334424726,1723084250810,-628.15272503,0.00027945,7]
[334424727,1723084250821,-500.0,0.00027945,7]
[334424728,1723084250831,-500.0,0.00027945,7]
[334424729,1723084250841,-500.0,0.00027945,7]
[334424730,1723084250850,-649.19,0.00027945,7]
[334424731,1723084250860,-500.0,0.00027945,7]
[334424732,1723084250869,-500.0,0.00027945,7]
[334424733,1723084250879,-1066.74,0.00027945,7]
[334424734,1723084250890,-468.83987405,0.00027945,14]
[334424735,1723084250899,-500.0,0.00027945,7]
[334424736,1723084250910,-500.0,0.00027945,7]
[334424737,1723084250920,-661.55,0.00027945,7]
[334424738,1723084250929,-500.0,0.00027945,7]
[334424739,1723084250939,-573.57,0.00027945,7]
[334424740,1723084250949,-500.0,0.00027945,7]
[334424741,1723084250958,-500.0,0.00027945,7]
[334424742,1723084250968,-500.0,0.00027945,7]
[334424743,1723084250977,-500.0,0.00027945,7]
[334424744,1723084250987,-500.0,0.00027945,7]
[334424745,1723084250998,-500.0,0.00027945,7]
[334424746,1723084251008,-500.0,0.00027945,7]
[334424747,1723084251018,-1864.11,0.00027945,7]
[334424748,1723084251027,-500.0,0.00027945,7]
[334424749,1723084251037,-1220.41,0.00027945,7]
[334424750,1723084251046,-855.08,0.00027945,7]
[334424751,1723084251057,-273.61356917,0.00027945,7]
[334424752,1723084251066,-500.0,0.00027945,7]
[334424753,1723084251076,-500.0,0.00027945,7]
[334424754,1723084251086,-500.0,0.00027945,7]
[334424755,1723084251095,-1785.49,0.00027945,7]
[334424756,1723084251106,-500.0,0.00027945,7]
[334424757,1723084251116,-751.91,0.00027945,7]
[334424758,1723084251126,-500.0,0.00027945,7]
[334424759,1723084251136,-617.07,0.00027945,7]
[334424760,1723084251149,-1574.83,0.00027945,7]
[334424761,1723084251158,-500.0,0.00027945,7]
[334424762,1723084251168,-1153.44,0.00027945,7]
[334424763,1723084251179,-500.0,0.00027945,2]
[334424764,1723084251190,-500.0,0.00027945,7]
[334424765,1723084251202,-671.53,0.00027945,7]
[334424766,1723084251212,-1446.16,0.00027945,7]
[334424767,1723084251222,-500.0,0.00027945,7]
[334424768,1723084251233,-500.0,0.00027945,7]
[334424769,1723084251242,-700.87,0.00027945,7]
[334424770,1723084251252,-500.0,0.00027945,7]